Cogmind - Beta 17 @@@ ROGUE MODE // 2026.06.25 @ 18:42:25 Player: Plexion Result: Destroyed by G-47 Trooper with Particle Gun Performance ------------- Evolutions (2) 1000 Regions Visited (8) 1600 Robots Destroyed (61) 305 Value Destroyed (1374) 1374 Prototype IDs (4) 80 Alien Tech Used (0) 0 Bonus (8084) 8084 TOTAL SCORE: 12443 Bonus ------- High Alert Combat Kills 60 Follower Combat Kills 424 Prayed to X0-1V1 5000 Major X0-1V1 Interference 2600 Cogmind --------- Core Integrity 0/550 Matter 265/900 Energy 100/100 System Corruption 15% Temperature Cool (14) Movement Core (350) Ox6 Location -8/Storage Parts ------- > --- POWER (1) -------- (None) > --- PROPULSION (4) --- (None) > --- UTILITY (4) ------ Large Storage Unit > --- WEAPON (2) ------- (None) > --- INVENTORY (16) --- Light Armor Plating Heavy Armor Plating Makeshift Thermal Plating Advanced EMP Blaster Mining Laser Makeshift Hammer Scythe Peak State ------------ > --- POWER ------------ Light Ion Engine > --- PROPULSION ------- VSS Leg Improved Carbon-fiber Leg Improved Carbon-fiber Leg Improved Carbon-fiber Leg > --- UTILITY ---------- Large Storage Unit Armor Integrity Analyzer Medium Reflective Plating X0-1V1's Piety Tracker > --- WEAPON ----------- Scythe Scimitar of Distortion > --- INVENTORY -------- Improved Deuterium Engine Light Treads Titanium Leg Wheel Heavy Armor Plating Makeshift Thermal Plating Light Assault Rifle Light Assault Rifle Light Assault Rifle Heavy Assault Rifle Improved Grenade Launcher Long-range Missile Launcher Mining Laser Makeshift Hammer Scythe [Rating: 51] Favorites ----------- Power Light Ion Engine Engine Light Ion Engine Propulsion Light Treads Treads Light Treads Leg Improved Carbon-fiber Leg Wheel Compact Wheel Utility X0-1V1's Piety Tracker Device X0-1V1's Piety Tracker Storage Small Storage Unit Processor Armor Integrity Analyzer Protection Medium Reflective Plating Weapon Light Assault Rifle Energy Gun EM Pulse Gun Ballistic Gun Light Assault Rifle Launcher Improved Grenade Launcher Special Weapon Mining Laser Slashing Weapon Scythe Build | -11 -10 -10 -9 -9 -9 -8 -8 -8 ------- Run | Yrd Mat Min Mat Min Exi Min Mat Sto Slots Evolved 4 | . . . 2 . . . 2 . Power . | . . . . . . . . . Propulsion 2 | . . . 1 . . . 1 . Utility 2 | . . . 1 . . . 1 . Weapon . | . . . . . . . . . Parts Attached 44 | 7 1 3 8 . . 2 16 7 Power 6 | 1 . 1 1 . . . 2 1 Engine 6 | 1 . 1 1 . . . 2 1 Core . | . . . . . . . . . Reactor . | . . . . . . . . . Propulsion 13 | 2 . . 3 . . . 6 2 Treads 2 | 2 . . . . . . . . Leg 8 | . . . . . . . 6 2 Wheel 3 | . . . 3 . . . . . Hover . | . . . . . . . . . Flight . | . . . . . . . . . Utility 10 | 2 1 . 1 . . . 5 1 Device 4 | 1 1 . . . . . 1 1 Storage 3 | 1 . . 1 . . . 1 . Processor 1 | . . . . . . . 1 . Hackware . | . . . . . . . . . Protection 2 | . . . . . . . 2 . Artifact . | . . . . . . . . . Weapon 15 | 2 . 2 3 . . 2 3 3 Energy Gun 1 | . . . 1 . . . . . Energy Cannon . | . . . . . . . . . Ballistic Gun 6 | 2 . 1 1 . . 2 . . Ballistic Cannon . | . . . . . . . . . Launcher 3 | . . . 1 . . . . 2 Special Weapon 1 | . . 1 . . . . . . Impact Weapon . | . . . . . . . . . Slashing Weapon 4 | . . . . . . . 3 1 Piercing Weapon . | . . . . . . . . . Special Melee Weapon . | . . . . . . . . . Unidentified Prototypes 3 | . 1 . . . . . 1 1 Parts Lost 33 | . . 1 8 . . . 8 16 Power 5 | . . 1 1 . . . 1 2 Propulsion 13 | . . . 3 . . . 4 6 Utility 7 | . . . . . . . 3 4 Weapon 8 | . . . 4 . . . . 4 Highest Loss Streak 16 | . . 1 8 . . . 3 16 To Critical Strikes . | . . . . . . . . . Average Backups 7 | 3 4 6 6 3 3 3 6 12 Power . | . 1 . . . . . . . Propulsion 1 | 1 2 3 1 . . . . 1 Utility 1 | . . 1 1 1 1 . . 2 Weapon 3 | . 1 1 3 2 2 2 6 7 Tool/Special . | . . . . . . . . . Unused Backups 10 | . . . 2 . . . . 8 Power . | . . . . . . . . . Propulsion 4 | . . . 2 . . . . 2 Utility 3 | . . . . . . . . 3 Weapon 3 | . . . . . . . . 3 Tool/Special . | . . . . . . . . . Average Slot Usage (%) 90 | . 100 100 79 44 44 72 83 95 Engine 9 | . 14 14 9 . . . 7 8 Treads 13 | . 28 28 17 . . . . . Leg 10 | . . . . . . . 16 35 Wheel 4 | . . . 10 22 22 22 9 . Device 12 | . 14 14 11 11 11 19 13 8 Storage 11 | . 14 14 11 11 11 11 9 9 Processor 2 | . . . . . . . 4 8 Protection 2 | . . . . . . . 4 8 Ballistic Gun 13 | . 28 24 19 . . 19 1 . Special Weapon 1 | . . 3 . . . . . . Slashing Weapon 6 | . . . . . . . 15 16 Peak Build Rating 51 | 7 19 20 24 16 16 19 50 51 Average Rating 25 | 5 13 19 21 16 16 18 31 47 On Entrance 18 | . 7 19 20 16 16 16 19 50 Avg Prop Armor Cover (%) 14 | . . . 20 . . . 11 . Naked Turns . | . . . . . . . . . Heaviest Build 41 | 12 12 12 19 11 11 14 37 41 Greatest Support 69 | 40 40 40 40 32 32 32 66 69 Greatest Overweight (x) 7 | . . . 3 . . . 1 7 Average Overweight (x) . | . . . . . . . . . Largest Inventory Capacity 16 | 8 8 9 11 11 11 11 16 16 Average Capacity 11 | 7 8 8 10 11 11 11 15 16 Most Carried 16 | 4 5 8 9 3 3 4 14 16 Average Carried 7 | 3 4 6 6 3 3 3 6 13 Final Capacity 16 | 8 8 9 11 11 11 11 16 16 Final Carried 14 | 4 5 8 3 3 3 3 14 8 Class Distribution -------------------- 73% | Mutant 13% | Scavenger-Mutant 12% | Commander-Mutant Dominant Class ---------------- Mutant | -10/Materials Mutant | -10/Mines Mutant | -9/Materials Mutant | -9/Mines Mutant | -9/Exiles Scavenger-Mutant | -8/Mines Mutant | -8/Materials Commander-Mutant | -8/Storage Resources | -11 -10 -10 -9 -9 -9 -8 -8 -8 ----------- Run | Yrd Mat Min Mat Min Exi Min Mat Sto Matter Collected 1002 | 346 22 99 118 . . 56 318 43 Remotely . | . . . . . . . . . Salvage Created 1600 | 142 32 117 195 . . 18 413 683 Parts 128 | 19 3 13 17 . . 6 30 40 Haulers Intercepted 3 | . . . . . . . 1 2 Recyclers Shooed 1 | . . . . . . . 1 . Parts Field Recycled . | . . . . . . . . . Retrieved Matter . | . . . . . . . . . Parts Self-Destructed . | . . . . . . . . . Prevented . | . . . . . . . . . Parts Restored . | . . . . . . . . . Kills | -11 -10 -10 -9 -9 -9 -8 -8 -8 ------- Run | Yrd Mat Min Mat Min Exi Min Mat Sto Combat Hostiles Destroyed 38 | . 1 4 8 . . 3 14 8 Melee 12 | . . . . . . . 8 4 Guns 7 | . 1 4 2 . . . . . AOE 18 | . . . 6 . . 3 6 3 Classes Destroyed 14 | 2 1 2 4 . . . 2 3 Worker 5 | 1 . . 1 . . . 1 2 Builder 3 | . . 1 1 . . . . 1 Tunneler 7 | 6 . 1 . . . . . . Hauler 3 | . . . . . . . 1 2 Recycler 3 | . . . 1 . . . . 2 Operator 1 | . . . . . . . . 1 Watcher 1 | . . . 1 . . . . . Swarmer 20 | . . 4 6 . . 3 7 . Grunt 8 | . 1 . . . . . 3 4 Brawler 1 | . . . . . . . . 1 Duelist 2 | . . . 1 . . . . 1 Protector 1 | . . . . . . . . 1 Sentry 4 | . . . 1 . . . 2 1 Specialist 2 | . . . . . . . 2 . Best Kill Streak 7 | 3 1 3 7 . . 3 7 3 Combat Bots Only 7 | . 1 3 6 . . 3 7 3 Max Kills in Single Turn 5 | 2 1 1 5 . . 3 3 2 Gunslinging . | . . . . . . . . . Exploded 4 | . . . 4 . . 3 3 2 Melee 1 | . . . . . . . 1 1 Uniques/NPCs Destroyed . | . . . . . . . . . Combat | -11 -10 -10 -9 -9 -9 -8 -8 -8 -------- Run | Yrd Mat Min Mat Min Exi Min Mat Sto Hostile Shots Fired 302 | . 4 25 61 . . 3 77 132 Missed 81 | . . 4 18 . . 3 11 45 Hits 221 | . 4 21 43 . . . 66 87 Melee 17 | . . . 12 . . . . 5 Projectile 204 | . 4 21 31 . . . 66 82 Critical Strikes 14 | . . . 6 . . . 3 5 Damage Taken 4087 | . 44 242 971 . . 15 903 1912 Core 1006 | . . 26 281 . . 10 224 465 Absorbed by Shields . | . . . . . . . . . Ignored by Resistances 143 | . . . 33 . . 4 . 106 Core Remaining (%) 72 | 100 . 89 . . . 27 . . Volleys Fired 89 | 19 4 34 20 . . 1 9 2 Largest 2 | 2 2 2 2 . . 1 1 1 Hottest 100 | 40 40 100 63 . . 36 36 43 Shots Fired 144 | 38 8 50 36 . . 1 9 2 Gun 111 | 38 8 31 34 . . . . . Cannon . | . . . . . . . . . Launcher 14 | . . . 2 . . 1 9 2 Special 19 | . . 19 . . . . . . Kinetic 107 | 38 8 31 30 . . . . . Thermal 19 | . . 19 . . . . . . Explosive 14 | . . . 2 . . 1 9 2 Electromagnetic 4 | . . . 4 . . . . . Robot Hit Streak 12 | 4 5 2 10 . . . 11 12 Robot Miss Streak 4 | 2 2 4 1 . . . . 1 Penetration Max . | . . . . . . . . . Secondary Targets 2 | . . 1 1 . . . . . Max Gunslinging Chain 1 | . . 1 1 . . . . . Shots Hit Robots 125 | 23 5 11 30 . . . 31 25 Core Hits 84 | 11 3 8 23 . . 2 21 16 Critical Kills . | . . . . . . . . . Critical Parts Destroyed . | . . . . . . . . . Critical Strikes 4 | . . . . . . . 3 1 Sever 4 | . . . . . . . 3 1 Melee Attacks 94 | . . . . . . . 38 56 Impact . | . . . . . . . . . Slashing 94 | . . . . . . . 38 56 Piercing . | . . . . . . . . . Sneak Attacks 12 | . . . . . . . 3 9 Combat Hostiles . | . . . . . . . . . Follow-up Attacks 7 | . . . . . . . 5 2 Damage Inflicted 4812 | 228 62 184 1026 . . 155 1752 1405 Guns 847 | 228 60 154 405 . . . . . Cannons . | . . . . . . . . . Explosions 1960 | . . . 621 . . 155 885 299 Melee 1973 | . . . . . . . 867 1106 Ramming 8 | . 2 6 . . . . . . Kinetic 814 | 228 60 154 372 . . . . . Thermal 24 | . . 24 . . . . . . Explosive 1960 | . . . 621 . . 155 885 299 Electromagnetic 33 | . . . 33 . . . . . Impact . | . . . . . . . . . Slashing 1973 | . . . . . . . 867 1106 Piercing . | . . . . . . . . . Highest Corruption 15 | . . . . . . . . 15 Average Corruption 5 | . . . . . . . . 5 Corruption Purged . | . . . . . . . . . Corruption Blocked . | . . . . . . . . . Effects 4 | . . . . . . . . 4 Matter Fused 1 | . . . . . . . . 1 Heat Flow Errors 2 | . . . . . . . . 2 Energy Discharges 1 | . . . . . . . . 1 Overload Shots . | . . . . . . . . . Overflow Damage 407 | . . . 31 . . 14 98 264 Projectiles . | . . . . . . . . . Explosions 116 | . . . 31 . . 14 71 . Melee 291 | . . . . . . . 27 264 Knockbacks . | . . . . . . . . . Impact . | . . . . . . . . . Kinetic . | . . . . . . . . . Secondary . | . . . . . . . . . Self-Inflicted Damage 282 | . . . 133 . . 17 . 132 Shots 7 | . . . 3 . . 1 . 3 Rammed 5 | . 2 3 . . . . . . Targets Rammed 7 | . 2 3 . . . . . 2 Kicked 2 | . . . . . . . . 2 Crushed . | . . . . . . . . . Highest Temperature 292 | . 6 244 23 . . . 7 292 Average Temperature 51 | . 6 47 6 . . . 3 108 Received Heat Transfer 1134 | . 24 . 210 . . . 285 615 Siege Activations . | . . . . . . . . . Martial Activations . | . . . . . . . . . Shielding Activations . | . . . . . . . . . Robots Disrupted . | . . . . . . . . . Combat Hostiles . | . . . . . . . . . Robots Corrupted . | . . . . . . . . . Combat Hostiles . | . . . . . . . . . Parts Fried . | . . . . . . . . . Impact Corruptions . | . . . . . . . . . Robots Melted . | . . . . . . . . . Combat Hostiles . | . . . . . . . . . Parts Melted 1 | . . . . . . . . 1 Heat Transferred 50 | . . 50 . . . . . . Parts Sabotaged . | . . . . . . . . . Parts Stolen . | . . . . . . . . . Parts Stripped 14 | . . . . . . . . 14 Power Chain Reactions . | . . . . . . . . . Alert | -11 -10 -10 -9 -9 -9 -8 -8 -8 ------- Run | Yrd Mat Min Mat Min Exi Min Mat Sto Maximum Alert Level 3 | . . 1 1 . . . 1 3 Low Security (%) 65 | 100 100 53 82 100 . 100 78 40 Level 1 25 | . . 46 17 . . . 21 20 Level 2 7 | . . . . . . . . 32 Level 3 1 | . . . . . . . . 5 Level 4 . | . . . . . . . . . Level 5 . | . . . . . . . . . High Security . | . . . . . . . . . Max Security . | . . . . . . . . . Peak Influence 768 | 15 20 300 234 51 . 91 224 768 Initial 75 | . . 3 66 51 . . 15 75 Average 166 | 1 2 138 150 51 . 65 159 361 Influence Increases 2591 | 35 20 476 275 . . 91 469 1225 Destroy 0b10 Robot/C 1040 | . 20 120 180 . . 60 320 340 Destroy 0b10 Robot/NC 120 | 35 . 10 20 . . . 10 45 Destroy Leader 208 | . . 20 32 . . 10 82 64 Allied During Kill 232 | . . 11 . . . . 11 210 Disable Machine 135 | . . . 15 . . 15 15 90 Anti-Garrison Action 150 | . . . . . . . . 150 Destroy Structure 136 | . . . 28 . . 6 31 71 Lose Combat Pursuer 270 | . . 15 . . . . . 255 Miscellaneous 300 | . . 300 . . . . . . Influence Decreases 1909 | 35 10 313 317 80 51 50 331 722 Entered New Map 375 | . . 7 107 80 51 . 26 104 Time Decay 914 | 35 10 296 70 . . 50 175 278 Lost Part 320 | . . 10 80 . . . 70 160 Lost Ally 300 | . . . 60 . . . 60 180 Squads Dispatched 9 | . . . 1 . . . 3 5 Investigation 1 | . . . . . . . 1 . Extermination . | . . . . . . . . . Reinforcement 5 | . . . 1 . . . 2 2 Assault 3 | . . . . . . . . 3 Garrison . | . . . . . . . . . Intercept . | . . . . . . . . . Searches Triggered . | . . . . . . . . . Construction Impeded 1 | . . . . . . . . 1 Haulers Reinforced . | . . . . . . . . . Active Scanning Responses . | . . . . . . . . . Cargo Convoy Interrupts . | . . . . . . . . . Stealth | -11 -10 -10 -9 -9 -9 -8 -8 -8 --------- Run | Yrd Mat Min Mat Min Exi Min Mat Sto Distress Signals 7 | . . . . . . . 4 3 Communications Jammed . | . . . . . . . . . Distress Signals . | . . . . . . . . . Times Spotted 96 | . 3 9 14 . . 3 20 47 Peak Tracking Total 15 | . 2 3 6 . . 3 6 15 Tactical Retreats 5 | . . 1 . . . . . 4 Traps | -11 -10 -10 -9 -9 -9 -8 -8 -8 ------- Run | Yrd Mat Min Mat Min Exi Min Mat Sto Traps Triggered 1 | . . . . . . . . 1 Indirectly . | . . . . . . . . . Trap Hack Attempts . | . . . . . . . . . Triggered . | . . . . . . . . . Disarmed . | . . . . . . . . . Reprogrammed . | . . . . . . . . . Reused . | . . . . . . . . . Traps Extracted . | . . . . . . . . . Installed . | . . . . . . . . . Triggered . | . . . . . . . . . Machines | -11 -10 -10 -9 -9 -9 -8 -8 -8 ---------- Run | Yrd Mat Min Mat Min Exi Min Mat Sto Machines Disabled 10 | . . . 1 . . 1 1 7 Max in Single Turn 2 | . . . 1 . . 1 1 2 Garrison Access 1 | . . . . . . . . 1 Machines Repaired . | . . . . . . . . . Machines Dismantled . | . . . . . . . . . Machines Sabotaged . | . . . . . . . . . Overloaded Fab Kills . | . . . . . . . . . Hacking | -11 -10 -10 -9 -9 -9 -8 -8 -8 --------- Run | Yrd Mat Min Mat Min Exi Min Mat Sto Machines Accessed 7 | . 1 . 1 . 1 . 1 3 Terminals 5 | . 1 . 1 . . . 1 2 Fabricators . | . . . . . . . . . Repair Stations . | . . . . . . . . . Recycling Units . | . . . . . . . . . Scanalyzers . | . . . . . . . . . Garrison Access 1 | . . . . . . . . 1 Total Hacks 13 | . 3 . 1 . 1 . 2 6 Successful 3 | . . . 1 . 1 . . 1 Failed 10 | . 3 . . . . . 2 5 Catastrophic 2 | . 1 . . . . . 1 . Database Lockouts . | . . . . . . . . . Manual 7 | . 4 . 1 . . . 2 . Terminals 10 | . 3 . 1 . . . 2 4 Fabricators . | . . . . . . . . . Repair Stations . | . . . . . . . . . Recycling Units . | . . . . . . . . . Scanalyzers . | . . . . . . . . . Garrison Access 2 | . . . . . . . . 2 Terminal Hacks 3 | . . . 1 . 1 . . 1 Record 1 | . . . . . 1 . . . Open Door 1 | . . . . . . . . 1 Branch Access Points 1 | . . . 1 . . . . . Fabricator Hacks . | . . . . . . . . . Repair Station Hacks . | . . . . . . . . . Recycling Unit Hacks . | . . . . . . . . . Scanalyzer . | . . . . . . . . . Garrison Access Hacks . | . . . . . . . . . Unauthorized Hacks . | . . . . . . . . . Terminals . | . . . . . . . . . Fabricators . | . . . . . . . . . Repair Stations . | . . . . . . . . . Recycling Units . | . . . . . . . . . Scanalyzers . | . . . . . . . . . Garrison Access . | . . . . . . . . . Data Cores Recovered . | . . . . . . . . . Used . | . . . . . . . . . Hacking Detections 5 | . 1 . . . . . 1 3 Full Trace Events 2 | . 1 . . . . . 1 . Feedback Events . | . . . . . . . . . Feedback Blocked . | . . . . . . . . . Robot Schematics Acquired . | . . . . . . . . . Robots Built . | . . . . . . . . . Authchips . | . . . . . . . . . Time . | . . . . . . . . . Total Robot Build Rating . | . . . . . . . . . Part Schematics Acquired . | . . . . . . . . . Parts Built . | . . . . . . . . . Authchips . | . . . . . . . . . Time . | . . . . . . . . . Total Part Build Rating . | . . . . . . . . . Part Studies Acquired . | . . . . . . . . . Parts Repaired . | . . . . . . . . . Time . | . . . . . . . . . Parts Recycled . | . . . . . . . . . Recycled Matter . | . . . . . . . . . Retrieved Matter . | . . . . . . . . . Retrieved Components . | . . . . . . . . . Parts Scanalyzed . | . . . . . . . . . Part Schematics Acquired . | . . . . . . . . . Parts Damaged . | . . . . . . . . . Bothacking | -11 -10 -10 -9 -9 -9 -8 -8 -8 ------------ Run | Yrd Mat Min Mat Min Exi Min Mat Sto Used RIF Installer . | . . . . . . . . . Robots Hacked . | . . . . . . . . . Non-combat . | . . . . . . . . . Combat . | . . . . . . . . . Robot Hacks Applied . | . . . . . . . . . Relay Couplers Released 3 | . . . . . . . . 3 Machine Destruction 3 | . . . . . . . . 3 Fabnet Peak Effective % . | . . . . . . . . . Robots Rewired . | . . . . . . . . . Allies Hacked . | . . . . . . . . . Hacks Repelled . | . . . . . . . . . Allies | -11 -10 -10 -9 -9 -9 -8 -8 -8 -------- Run | Yrd Mat Min Mat Min Exi Min Mat Sto Total Allies 16 | . . 3 . . . . 3 10 Largest Group 10 | . . 3 3 . . . 3 10 Highest-Rated Group 173 | . . 40 40 . . . 24 173 Highest-Rated Ally 29 | . . 16 16 . . . 8 29 Total Orders . | . . . . . . . . . Ally Attacks 164 | . . 9 13 . . . 25 117 Total Damage 1593 | . . 46 118 . . . 189 1240 Kills 16 | . . 2 1 . . . 2 11 Allies Corrupted . | . . . . . . . . . Allies Melted . | . . . . . . . . . X0-1V1 Amusement Gains 148 | . 4 . 5 40 . . 10 89 Good Acts 15 | . . 4 2 . . . 5 4 Bad Acts 16 | . . 8 3 . . . . 5 Intel | -11 -10 -10 -9 -9 -9 -8 -8 -8 ------- Run | Yrd Mat Min Mat Min Exi Min Mat Sto Active Infowar (turns) 402 | 11 91 . . . . 94 206 . Seismic 402 | 11 91 . . . . 94 206 . Robot Analysis Total . | . . . . . . . . . Derelict Logs Recovered 2 | . . 2 . . . . . . Drone Launches . | . . . . . . . . . Drone Recoveries . | . . . . . . . . . Exploration | -11 -10 -10 -9 -9 -9 -8 -8 -8 ------------- Run | Yrd Mat Min Mat Min Exi Min Mat Sto Turns Passed 2807 | 245 195 963 155 10 142 118 371 608 Spaces Moved 1525 | 115 100 432 71 11 143 110 169 374 Core 8 | 5 . . 1 . . . . 2 Treads 648 | 110 100 432 6 . . . . . Legs 428 | . . . . . . . 56 372 Wheels 441 | . . . 64 11 143 110 113 . Hover . | . . . . . . . . . Flight . | . . . . . . . . . Fastest Speed 50 | 50 160 160 95 100 100 100 100 110 Average Speed 131 | 155 160 160 102 100 100 100 114 117 Slowest Speed 400 | 160 160 160 200 100 100 100 195 400 Overloaded Moves . | . . . . . . . . . Propulsion Burnouts . | . . . . . . . . . Robots Hopped . | . . . . . . . . . Potential Cave-ins 4 | . . . . . . . . 4 Cave-ins Triggered 1 | . . . . . . . . 1 Exploration Rate (%) 34 | 5 26 76 19 4 52 40 15 70 Regions Visited 8 Branch Regions 5 Pre-discovered Areas 3 | . . 1 . 1 1 . . . Known Exits Taken 1 | . . . 1 . . . . . Unknown Exits Taken 7 | 1 1 1 . 1 1 1 1 . Scrap Searched 1 | . . . . . . 1 . . Spaces Dug 52 | . . 4 12 . . 8 14 14 Terrain Destroyed 162 | . . 4 33 . . 8 44 73 Melee 15 | . . . . . . . 1 14 Projectile 4 | . . 4 . . . . . . AOE 143 | . . . 33 . . 8 43 59 Terrain Rammed . | . . . . . . . . . Walls Destroyed . | . . . . . . . . . Machines Disabled . | . . . . . . . . . Actions | -11 -10 -10 -9 -9 -9 -8 -8 -8 --------- Run | Yrd Mat Min Mat Min Exi Min Mat Sto Total 2023 | 144 127 617 119 10 142 116 279 469 Wait 230 | . 20 144 10 . . . 38 18 Move 1517 | 114 99 431 70 10 142 109 168 374 Hop . | . . . . . . . . . Pick Up 22 | 4 . . 3 . . 1 9 5 Fast Attach 28 | 7 1 1 2 . . 2 13 2 Attach 15 | . . 1 6 . . 2 1 5 Detach 8 | . 1 1 1 . . 1 3 1 Swap 12 | . . 2 3 . . . 4 3 Drop 14 | . . . 4 . . . 1 9 Fire 89 | 19 4 34 20 . . 1 9 2 Melee 81 | . . . . . . . 33 48 Ram . | . . . . . . . . . Kick 2 | . . . . . . . . 2 Crush 5 | . 2 3 . . . . . . Escape Stasis . | . . . . . . . . . Rewire . | . . . . . . . . . Trap . | . . . . . . . . . Miscellaneous . | . . . . . . . . . Route ------- -11/Scrapyard -10/Materials (discovered 2 exits: [*Min] / [*Sub]) -10/Mines (discovered 2 exits: *Mat x2) -9/Materials (discovered 2 exits: *Min x2) -9/Mines -9/Exiles -8/Mines -8/Materials -8/Storage History --------- Turn | Location | Event 3 | -11/Scrapyard | Discovered new exit (range 15) 246 | -11/Scrapyard | Entered Materials 312 | -10/Materials | Discovered new exit (range 4) 313 | -10/Materials | Build established: Mutant 337 | -10/Materials | Prayed at D.C.S.S. Altar Unit 417 | -10/Materials | Discovered new exit (range 16) 441 | -10/Materials | Entered Mines 651 | -10/Mines | Inventory capacity permanently improved by X0-1V1 (+1; -100 max core) 655 | -10/Mines | Core integrity permanently improved by X0-1V1 (+250) 658 | -10/Mines | EX resistance permanently improved by X0-1V1 (+15%; -150 max core) 666 | -10/Mines | X0-1V1 sent you into danger 669 | -10/Mines | Discovered new exit (range 4) 680 | -10/Mines | X0-1V1 upgraded hostiles (x2) 876 | -10/Mines | X0-1V1 added 0b10 threat records associated with you (major) 1041 | -10/Mines | Assisted by bots powering up and referring to "LRC-V3" 1153 | -10/Mines | Found a hidden stash of uninstalled traps 1180 | -10/Mines | Learned Materials emergency access door positions 1249 | -10/Mines | Learned location of Storage (-8) 1373 | -10/Mines | Discovered new exit (range 10) 1404 | -10/Mines | Entered Materials 1404 | -9/Materials | Accompanied by 3 allies 1404 | -9/Materials | Evolved 2 slots: Propulsion x1, Utility x1 1433 | -9/Materials | X0-1V1 sent you into danger 1458 | -9/Materials | Identified exit to Mines 1518 | -9/Materials | X0-1V1 upgraded hostiles (x2) 1532 | -9/Materials | Core integrity fell below 50% 1559 | -9/Materials | Entered Mines 1560 | -9/Mines | Assembled infested the area 1565 | -9/Mines | Deemed a non-threat by the Exiles lab entrance 1565 | -9/Mines | Discovered new exit (range 5) 1569 | -9/Mines | Entered Exiles 1574 | -9/Exiles | Lost 8 parts (1p3n4w) 1593 | -9/Exiles | Met 8R-AWN 1610 | -9/Exiles | Met EX-HEX 1651 | -9/Exiles | Met EX-DEC 1674 | -9/Exiles | Learned location of Zion (-7) 1703 | -9/Exiles | Discovered new exit (range 10) 1711 | -9/Exiles | Entered Mines 1818 | -8/Mines | Discovered new exit (range 14) 1829 | -8/Mines | Entered Materials 1829 | -8/Materials | Evolved 2 slots: Propulsion x1, Utility x1 1928 | -8/Materials | Destroyed 7 combat bots 1954 | -8/Materials | X0-1V1 sent allied G-34 Mercenary (x3) 2025 | -8/Materials | X0-1V1 sent you to a vault 2028 | -8/Materials | Found Prototype Slashing Weapon 2031 | -8/Materials | Discovered new exit (range 8) 2069 | -8/Materials | Lost 3 parts (2n1u) 2162 | -8/Materials | Lost 3 parts (2n1u) 2198 | -8/Materials | Identified Scimitar of Distortion 2200 | -8/Materials | Entered Storage 2258 | -8/Storage | Assisted by bots powering up and referring to "LRC-V3" 2457 | -8/Storage | X0-1V1 vaporized surrounding terrain (radius 20) 2570 | -8/Storage | Build established: Commander-Mutant 2600 | -8/Storage | First assault squad dispatched 2667 | -8/Storage | Core integrity restored by X0-1V1 (+126) 2698 | -8/Storage | Lost 8 allies 2716 | -8/Storage | Crushed by falling debris 2747 | -8/Storage | System corruption reached 10% 2754 | -8/Storage | Core integrity fell below 50% 2765 | -8/Storage | X0-1V1 upgraded hostiles (x1) 2804 | -8/Storage | Core integrity fell below 20% 2808 | -8/Storage | Destroyed by G-47 Trooper with Particle Gun Last Messages --------------- 02778_ Terminal disabled. 02779_ K-01 Serf collects debris. X0-1V1's Piety Tracker suddenly appears amidst shimmering waves of color. 02783_ K-01 Serf collects debris. 02784_ The unstable cave ceiling collapses. 02785_ K-01 Serf destroyed. 02786_ The unstable cave ceiling collapses. 02786_ Lrn. Missile Launcher destroyed. 02791_ Acquired X0-1V1's Piety Tracker. 02792_ Carbon-fiber Leg destroyed. 02795_ System corrupted: Heat flow error (+130). 02795_ Imp. Deuterium Engine destroyed. 02795_ Sight range returns to normal. 02799_ VSS Leg destroyed. 02801_ Titanium Leg destroyed. 02803_ Axe destroyed. 02804_ Critical hit (Burn: +37). 02805_ X0-1V1's Piety Tracker destroyed. 02806_ X0-1V1 is amused. 02808_ X0-1V1 guffaws! Map ----- +----------------------------------------------------+ | | | ?????????????????????????????????????? | | ?????????????????????????????????????? | | ?????????????????????????????????????? | | ?????????????????????????????????????? | | ?????????????????????????????????????? | | ?????????????????????????????????????? | | ?????????????????????????????????????? | | ?????????????????????????????????????? | | ?????????????????????????????????????? | | ?????????????????????????????????????? | | ?????????????????????????????????????? | | ?????????????????????????????????????# | | ?????????????????????????????????????+ | | ?????????????????????????????????????# | | ???????????????????????????###???????# | | ????????????????????????#### ######### | | ???????????????????????## # ## | | ????????????????????#### ## | | ???????????????????# | | ???????????????????# """ # | | ???????????????????# """ ## | | ???????????????????# """ ##""" | | ???????????????????# ###"Y" | | ????# ##+############### # ####" " | | ????# @ Y =%= | | ????# gg g ! | | ????# g gl g | | ????################################ | | ???????????????????????????????????## | | ????????????????????????????????????## | | ?????????????????????????????????????? | | ?????????????????????????????????????? | | ?????????????????????????????????????? | | ?????????????????????????????????????? | | ?????????????????????????????????????? | | ????????????????????????????????#####? | | ????????????????????????????????#"#"## | | ?????????????????????????????????# | | ?????????????????????????????????# | | ?????????????????????????????????# | | ?????????????????????????????????##### | | ?????????????????????????????????????? | | ?????????????????????????????????????? | | ?????????????????????????????????????# | | ????????????????????????????????????## | | ???????????????????????????????????## | | ??????????????????????????????????## | | ??????????????????????????????????# | | ?????????????????????????????????# | +----------------------------------------------------+ Best States ------------- Heat Dissipation 31 Energy Generation 16 Energy Capacity 290 Matter Stores 300 Matter Capacity 900 Sight Range 16 Terrain Scan Density 10 Armor Coverage 225 Resistance: TH 20 Resistance: EX 15 Evasion (%) 55 Target Analysis 5 Armor Integrity Analysis 30 Recoil Reduction 2 Item Schematics ----------------- None Robot Schematics ------------------ None Fabricated ------------ Nothing Repaired ---------- Nothing Studied --------- None Alien Tech Used ----------------- None Achievements -------------- None Challenges ------------ None Game ------ Seed MetafieldImpulseMatterbank Manual? 0 Play Time 00:21:33 Cumulative 989.0 hours Start 2026.06.25 @ 18:23:13 End 2026.06.25 @ 18:42:25 Sessions 1 Manual Loads 0 Difficulty Rogue Special Mode None Game No. 884 Rogue 797 Adventurer 87 Explorer 0 Win Type - Total 67 Types 12/9/33/2/1/1/5/1/1/2 Lore% 97 Gallery% 90 Achievement% 75 Wizard Run 0 Options --------- Layout 0 ASCII 0 Keyboard 1 Movement Numpad Keybinds 0 Fullscreen 2 Font 18/SmallcapsGlow Map View 76x50 Zoom Use 0% Tactical HUD 1 Map Filters NONE Filters NONE Steam 1 RUN: c25da5ad-d42f-4874-88da-8daa97318e88